lending/lending_fUSD_20240522
["ID","MTS","AMOUNT","RATE_DAILY","PERIOD"]
[327727131,1716387047012,-337.70661276,0.0002941,2]
[327727132,1716387047640,-410.39631753,0.00024999,2]
[327727133,1716387047649,-114.15040659,0.00027397,10]
[327727134,1716387047661,-56.92959341,0.00027397,10]
[327727135,1716387047671,-162.29338724,0.0002941,2]
[327727136,1716387047680,-247.76038366,0.0002941,2]
[327727146,1716387386372,156.06,0.00013973,2]
[327727148,1716387898093,150.13,0.00013973,2]
[327727170,1716388232336,-1381.46330774,0.00016337,2]
[327727171,1716388232346,-526.12031069,0.00016337,2]
[327727172,1716388232355,-803.94291113,0.00016338,2]
[327727173,1716388232365,-263.17590195,0.00016338,2]
[327727174,1716388232495,-326.8758113,0.00016338,2]
[327727175,1716388232507,-1064.33887229,0.00016338,2]
[327727176,1716388232517,-176.68023054,0.00016339,2]
[327727177,1716388232527,-326.03857362,0.0001634,2]
[327727178,1716388232537,-306.42946503,0.00016341,2]
[327727179,1716388232547,-505.28772991,0.00016342,2]
[327727180,1716388232556,-150.0,0.00016343,2]
[327727181,1716388232566,-537.19632418,0.00016352,2]
[327727182,1716388232575,-1944.0,0.000164,2]
[327727183,1716388232586,-834.25577502,0.0001716,2]
[327727184,1716388232595,-536.82245119,0.00017242,2]
[327727185,1716388232606,-108.60992633,0.0001726,2]
[327727186,1716388232618,-1292.53007367,0.0001726,2]
[327727187,1716388232627,-1927.13859442,0.0001726,6]
[327727188,1716388232639,-360.26140558,0.0001726,6]
[327727189,1716388232648,-894.1110431,0.0001726,2]
[327727190,1716388232660,-1266.5689569,0.0001726,2]
[327727191,1716388232670,-499.99,0.00017534,2]
[327727192,1716388232679,-210.0,0.00017977,2]
[327727193,1716388232688,-410.39631753,0.00019,2]
[327727194,1716388232698,-335.63,0.00019481,2]
[327727195,1716388232707,-293.0,0.00019775,2]
[327727196,1716388232717,-285.0,0.0002,2]
[327727197,1716388232726,-201.38793724,0.00020152,2]
[327727198,1716388232741,-250.0,0.00021603,2]
[327727199,1716388232751,-150.0,0.00021605,2]
[327727200,1716388232760,-496.0,0.00021616,2]
[327727201,1716388232770,-505.4945504,0.00021616,2]
[327727202,1716388232781,-134.0154496,0.00021616,2]
[327727203,1716388232790,-428.32614833,0.00021647,3]
[327727204,1716388232802,-405.92962669,0.00021647,3]
[327727205,1716388232811,-455.44,0.0002166,2]
[327727206,1716388232821,-250.0,0.00021685,2]
[327727207,1716388232830,-200.0,0.00021713,2]
[327727208,1716388232840,-335.63,0.00021745,2]
[327727209,1716388232850,-1244.2402654,0.00021746,2]
[327727210,1716388232861,-2908.76010791,0.00021747,2]
[327727211,1716388232873,-1152.60554314,0.00021747,2]
[327727212,1716388232886,-1445.22698625,0.00021747,2]
[327727213,1716388232898,-471.82297035,0.00021747,2]
[327727214,1716388234422,-1075.9549519,0.00021747,2]
[327727215,1716388234455,-2657.2665935,0.00021747,2]
[327727216,1716388234468,-14188.36284695,0.00021747,2]
[327727217,1716388234478,-160.18,0.00021751,2]
[327727218,1716388234492,-316.86,0.00021752,2]
[327727219,1716388234502,-500.0,0.00021759,2]
[327727220,1716388234514,-1000.0,0.00021917,2]
[327727221,1716388234525,-166.21,0.00021918,2]
[327727222,1716388234534,-155.31,0.00021963,2]
[327727223,1716388234543,-153.02,0.00021997,2]
[327727224,1716388234552,-200.02,0.00021997,2]
[327727225,1716388234561,-153.02,0.00022015,2]
[327727226,1716388234571,-153.02,0.00022033,2]
[327727227,1716388234580,-153.02,0.00022052,2]
[327727228,1716388234590,-155.31,0.00022067,2]
[327727229,1716388234599,-153.02,0.0002207,2]
[327727230,1716388234609,-153.02,0.00022088,2]
[327727231,1716388234618,-154.49054119,0.00022096,2]
[327727232,1716388234627,-168.99,0.00022106,2]
[327727233,1716388234636,-153.02,0.00022107,2]
[327727234,1716388234646,-1218.89,0.00022125,2]
[327727235,1716388234656,-157.97230717,0.0002214,2]
[327727236,1716388234665,-155.31,0.00022171,2]
[327727237,1716388234675,-423.50395095,0.00022228,2]
[327727238,1716388234684,-166.73621259,0.00022266,2]
[327727239,1716388234694,-155.31,0.00022275,2]
[327727240,1716388234703,-196.18,0.00022286,2]
[327727241,1716388234713,-152.0063385,0.00022329,2]
[327727242,1716388234722,-155.31,0.00022379,2]
[327727243,1716388234732,-166.87237412,0.00022391,2]
[327727244,1716388234746,-155.31,0.00022483,2]
[327727245,1716388234756,-152.0063385,0.00022522,2]
[327727246,1716388234766,-226.33,0.00022555,2]
[327727247,1716388234775,-155.31,0.00022587,2]
[327727248,1716388234785,-155.31,0.00022691,2]
[327727249,1716388234794,-155.31,0.00022795,2]
[327727250,1716388234804,-155.31,0.00022899,2]
[327727251,1716388234813,-152.0063385,0.00022908,2]
[327727252,1716388234823,-154.94429311,0.00023001,2]
[327727253,1716388234833,-155.31,0.00023003,2]
[327727254,1716388234842,-155.31,0.00023107,2]
[327727255,1716388234852,-152.0063385,0.00023185,2]
[327727256,1716388234862,-154.94429311,0.00023198,2]
[327727257,1716388234872,-156.9120435,0.00023412,2]
[327727258,1716388234882,-151.8895225,0.0002342,2]
[327727259,1716388234892,-151.8895225,0.00023425,2]
[327727260,1716388234902,-151.8895225,0.00023488,2]
[327727261,1716388234912,-154.94429311,0.00023497,2]
[327727262,1716388234922,-547.45858614,0.00023528,2]
[327727263,1716388234931,-154.94429311,0.00023841,2]
[327727264,1716388234942,-155.9957407,0.00023865,2]
[327727265,1716388234952,-154.94429311,0.00023872,2]
[327727266,1716388234962,-154.94429311,0.00023917,2]
[327727267,1716388234972,-389.114263,0.00023928,2]
[327727268,1716388234982,-183.896947,0.00023928,2]
[327727269,1716388235000,-255.679047,0.00023928,2]
[327727270,1716388235010,-186.015969,0.00023928,2]
[327727271,1716388235020,-181.501984,0.00023928,2]
[327727272,1716388235031,-155.86954962,0.00023934,2]
[327727273,1716388235042,-335.63,0.00024009,2]
[327727274,1716388235051,-389.114263,0.00024227,2]
[327727275,1716388235061,-255.679047,0.00024227,2]
[327727276,1716388235072,-181.501984,0.00024227,2]
[327727277,1716388235082,-180.0,0.0002423,2]
[327727278,1716388235091,-154.94429311,0.00024311,2]
[327727279,1716388235102,-496.0,0.00024318,2]
[327727280,1716388235112,-639.51,0.00024356,2]
[327727281,1716388235121,-152.0063385,0.00024431,2]
[327727282,1716388235131,-389.114263,0.00024526,2]
[327727283,1716388235141,-255.679047,0.00024526,2]
[327727284,1716388235151,-181.501984,0.00024526,2]
[327727285,1716388235160,-700.0,0.000246,8]
[327727286,1716388235170,-250.0,0.00024658,2]
[327727287,1716388235180,-268.32530534,0.00024698,2]
[327727288,1716388235297,-250.31322751,0.00024699,2]
[327727289,1716388235308,-3510.5234,0.000247,2]
[327727290,1716388235318,-395.4755,0.000247,2]
[327727291,1716388235328,-26745.9364,0.000247,2]
[327727292,1716388235339,-1809.0566634,0.000247,2]
[327727293,1716388235348,-327.60517252,0.000247,2]
[327727294,1716388235358,-1400.0,0.000247,9]
[327727295,1716388235368,-152.0063385,0.00024768,2]
[327727296,1716388235377,-569.71,0.00024788,3]
[327727297,1716388235387,-284.85,0.00024788,3]
[327727298,1716388235397,-854.58,0.00024788,3]
[327727299,1716388235406,-306.56733632,0.00024788,2]
[327727300,1716388235417,-306.56733632,0.00024788,2]
[327727301,1716388235430,-306.56733632,0.00024788,2]
[327727302,1716388235440,-306.56733632,0.00024788,2]
[327727303,1716388235449,-306.56733632,0.00024788,2]
[327727304,1716388235458,-306.56733632,0.00024788,2]
[327727305,1716388235469,-306.56733632,0.00024788,2]
[327727306,1716388235478,-306.56733632,0.00024788,2]
[327727307,1716388235493,-306.56733632,0.00024788,2]
[327727308,1716388235505,-306.56733632,0.00024788,2]
[327727309,1716388235516,-306.56733632,0.00024788,2]
[327727310,1716388235526,-306.56733632,0.00024788,2]
[327727311,1716388235537,-306.56733632,0.00024788,2]
[327727312,1716388235546,-306.56733632,0.00024788,2]
[327727313,1716388235556,-306.56733632,0.00024788,2]
[327727314,1716388235567,-306.56733632,0.00024788,2]
[327727315,1716388235579,-306.56733632,0.00024788,2]
[327727316,1716388235590,-306.56733632,0.00024788,2]
[327727317,1716388235600,-306.56733632,0.00024789,2]
[327727318,1716388235610,-306.56733632,0.0002479,2]
[327727319,1716388235619,-306.56733632,0.0002479,2]
[327727320,1716388235629,-306.56733632,0.0002479,2]
[327727321,1716388235639,-306.56733632,0.0002479,2]
[327727322,1716388235648,-306.56733632,0.0002479,2]
[327727323,1716388235659,-306.56733632,0.0002479,2]
[327727324,1716388235669,-306.56733632,0.0002479,2]
[327727325,1716388235679,-306.56733632,0.0002479,2]
[327727326,1716388235688,-306.56733632,0.0002479,2]
[327727327,1716388235698,-306.56733632,0.0002479,2]
[327727328,1716388235707,-306.56733632,0.0002479,2]
[327727329,1716388235717,-306.56733632,0.0002479,2]
[327727330,1716388235727,-306.56733632,0.0002479,2]
[327727331,1716388235741,-306.56733632,0.0002479,2]
[327727332,1716388235751,-306.56733632,0.0002479,2]
[327727333,1716388235760,-306.56733632,0.0002479,2]
[327727334,1716388235770,-306.56733632,0.0002479,2]
[327727335,1716388235779,-306.56733632,0.0002479,2]
[327727336,1716388235789,-306.56733632,0.0002479,2]
[327727337,1716388235799,-306.56733632,0.0002479,2]
[327727338,1716388235810,-306.56733632,0.0002479,2]
[327727339,1716388235820,-306.56733632,0.0002479,2]
[327727340,1716388235830,-306.56733632,0.0002479,2]
[327727341,1716388235840,-306.56733632,0.0002479,2]
[327727342,1716388235850,-306.56733632,0.0002479,2]
[327727343,1716388235860,-306.56733632,0.0002479,2]
[327727344,1716388235870,-306.56733632,0.0002479,2]
[327727345,1716388235880,-306.56733632,0.0002479,2]
[327727346,1716388235890,-306.56733632,0.0002479,2]
[327727347,1716388235900,-306.56733632,0.0002479,2]
[327727348,1716388235910,-306.56733632,0.0002479,2]
[327727349,1716388235921,-4486.04714854,0.00024796,2]
[327727350,1716388235931,-2413.03322194,0.00024798,2]
[327727351,1716388235941,-1214.09734714,0.00024798,2]
[327727352,1716388235951,-167.79510235,0.00024798,2]
[327727353,1716388235962,-155.29099376,0.00024798,2]
[327727354,1716388235972,-200.89902712,0.00024798,2]
[327727355,1716388235982,-155.0,0.00024798,2]
[327727356,1716388235996,-1264.03409721,0.00024798,2]
[327727357,1716388236006,-818.04668368,0.00024798,2]
[327727358,1716388236017,-372.66409471,0.00024798,2]
[327727359,1716388236027,-535.6337843,0.00024798,2]
[327727360,1716388236037,-155.24268003,0.00024798,2]
[327727361,1716388236048,-155.25088155,0.00024798,2]
[327727362,1716388236058,-6136.91024807,0.00024798,2]
[327727363,1716388236069,-317.83004084,0.00024798,2]
[327727364,1716388236079,-4742.30332109,0.00024798,2]
[327727365,1716388236089,-712.80280056,0.00024798,2]
[327727366,1716388236099,-686.12362517,0.00024798,2]
[327727367,1716388236108,-155.7061596,0.00024798,2]
[327727368,1716388236118,-261.83363349,0.00024798,2]
[327727369,1716388236128,-523.26379453,0.00024798,2]
[327727370,1716388236138,-33068.40592606,0.00024798,2]
[327727371,1716388236148,-155.0,0.00024798,2]
[327727372,1716388236157,-4274.94146462,0.00024799,2]
[327727373,1716388236167,-409.53251773,0.00024799,2]
[327727374,1716388236176,-155.16197257,0.00024799,2]
[327727375,1716388236186,-204.5777286,0.00024799,2]
[327727376,1716388236196,-34362.01798015,0.000248,2]
[327727377,1716388236691,-6329.55979309,0.000248,2]
[327727378,1716388236703,-204308.42222676,0.000248,2]
[327727379,1716388236714,-1240.9733,0.000248,2]
[327727380,1716388236724,-100000.0,0.000248,2]
[327727381,1716388236733,-1000.0,0.000248,2]
[327727382,1716388236746,-2100.0,0.000248,9]
[327727383,1716388236756,-389.114263,0.00024825,2]
[327727384,1716388236765,-255.679047,0.00024825,2]
[327727385,1716388236775,-181.501984,0.00024825,2]
[327727386,1716388236784,-2043.51037574,0.00024889,2]
[327727387,1716388236794,-10542.30980561,0.00024898,2]
[327727388,1716388236804,-176.31670544,0.000249,2]
[327727389,1716388236814,-4881.06942872,0.000249,2]
[327727390,1716388236824,-161.20225717,0.000249,2]
[327727391,1716388236834,-185.11585315,0.000249,2]
[327727392,1716388236845,-178.56144214,0.000249,2]
[327727393,1716388236854,-2800.0,0.000249,9]
[327727394,1716388236863,-7500.0,0.000249,2]
[327727395,1716388236873,-1125.36975258,0.000249,2]
[327727396,1716388236883,-155.9957407,0.00024919,2]
[327727397,1716388236894,-216.8,0.0002497,15]
[327727398,1716388236903,-150.5,0.0002498,15]
[327727399,1716388236913,-150.5,0.0002499,15]
[327727400,1716388236922,-9155.08316628,0.0002499,2]
[327727401,1716388236932,-151.44,0.0002499,2]
[327727402,1716388236942,-151.44,0.0002499,2]
[327727403,1716388236952,-224.2998362,0.00025,2]
[327727404,1716388236961,-687677.07936798,0.00025,2]
[327727405,1716388236974,-259.94301548,0.00025,2]
[327727406,1716388236985,-3612.3288521,0.00025,2]
[327727407,1716388236999,-7876.43527198,0.00025,2]
[327727416,1716388239435,-166.15748898,0.0002499,2]
[327727417,1716388239446,-320818.51703164,0.00025,2]
[327727418,1716388239458,-70970.66206303,0.00025,2]
[327727419,1716388239473,-2143.77423767,0.00025,2]
[327727420,1716388239486,-1641.02539894,0.00025,2]
[327727421,1716388239502,-2238.30574906,0.00025,2]
[327727422,1716388239515,-3706.15001928,0.00025,2]
[327727423,1716388239994,-42859.30624458,0.00025,2]
[327727426,1716388240007,-13325.35010951,0.00025,2]
[327727428,1716388240020,-949.25955,0.00025,2]
[327727430,1716388240032,-769.96443153,0.00025,2]
[327727431,1716388240044,-311.184893,0.00025,2]
[327727432,1716388240057,-22471.96126673,0.00025,2]
[327727439,1716388240856,-1113.07430007,0.00025,2]
[327727440,1716388240892,-616.97916288,0.00025,2]
[327727465,1716388244075,989.55333402,0.0001048,2]
[327727467,1716388244632,-636.34032729,0.00024698,2]
[327727471,1716388244646,-252.54857271,0.00024698,2]
[327727474,1716388244657,-803.94291113,0.00024999,2]
[327727477,1716388244668,-292.86882684,0.00024999,2]
[327727482,1716388244679,-3249.79647535,0.00025,2]
[327727486,1716388244692,-12260.29029306,0.00025,2]
[327727489,1716388244708,-894.05955887,0.00025,2]
[327727491,1716388244721,-688.56235155,0.00025,2]
[327727494,1716388244733,-166522.14811114,0.00025,2]
[327727520,1716388245047,-42319.23131997,0.00025,2]
[327727521,1716388245059,-746.60009089,0.00025,2]
[327727522,1716388245071,-4422.30655887,0.00025,2]
[327727523,1716388245083,-4186.84058767,0.00025,2]
[327727524,1716388245094,-3369.65,0.00025,2]
[327727525,1716388245105,-839.10109103,0.00025,2]
[327727526,1716388245117,-879.96203973,0.00025,2]
[327727527,1716388245128,-372712.63359454,0.00025,2]
[327727531,1716388246204,-466.70474391,0.00025,2]
[327727533,1716388246217,-768.00589728,0.00025,2]
[327727534,1716388246228,-573.43013765,0.00025,2]
[327727535,1716388246239,-8246.39997353,0.00025,2]
[327727536,1716388246253,-1115.76069596,0.00025,2]
[327727537,1716388246264,-3508.1022,0.00025,2]
[327727538,1716388246275,-2017.62724224,0.00025,2]
[327727539,1716388246287,-43864.51822312,0.00025,2]
[327727540,1716388246298,-1471.2205633,0.00025,2]
[327727541,1716388246309,-440.74979347,0.00025,2]
[327727542,1716388246322,-40687.27318308,0.00025,2]
[327727543,1716388246334,-31715.73820004,0.00025,2]
[327727544,1716388246346,-62013.51984336,0.00025,2]
[327727545,1716388246358,-146707.30673739,0.00025,2]
[327727546,1716388246367,-567.31,0.00025,2]
[327727547,1716388246377,-612.05,0.00025,2]
[327727548,1716388246387,-248.97029145,0.00025,2]
[327727549,1716388246397,-154.94429311,0.00025038,2]
[327727550,1716388246406,-389.114263,0.00025124,2]
[327727551,1716388246416,-255.679047,0.00025124,2]
[327727552,1716388246431,-181.501984,0.00025124,2]
[327727553,1716388246441,-246.04,0.00025143,2]
[327727554,1716388246450,-166.29644053,0.00025219,2]
[327727555,1716388246460,-155.86954962,0.00025294,2]
[327727556,1716388246471,-154.49054119,0.00025464,2]
[327727557,1716388246480,-159.3699911,0.00025469,2]
[327727558,1716388246490,-152.0063385,0.00025554,2]
[327727559,1716388246502,-10542.30980559,0.00025831,2]
[327727560,1716388246513,-2043.5103757,0.00025831,2]
[327727561,1716388246523,-4881.0694287,0.00025855,2]
[327727562,1716388246532,-3000.0,0.00026027,5]
[327727563,1716388246542,-3000.0,0.00026027,5]
[327727564,1716388246552,-3000.0,0.00026027,5]
[327727565,1716388246562,-3000.0,0.00026027,5]
[327727566,1716388246572,-3000.0,0.00026027,5]
[327727568,1716388246584,-3000.0,0.00026027,5]
[327727570,1716388246593,-3000.0,0.00026027,5]
[327727573,1716388246604,-3000.0,0.00026027,5]
[327727575,1716388246614,-3000.0,0.00026027,5]
[327727576,1716388246624,-3000.0,0.00026027,5]
[327727578,1716388246633,-3000.0,0.00026027,5]
[327727580,1716388246643,-3000.0,0.00026027,5]
[327727582,1716388246652,-1821.90270182,0.00026027,5]
[327727584,1716388246661,-151.8895225,0.00026035,2]
[327727586,1716388246671,-1809.05666336,0.00026087,2]
[327727588,1716388246680,-1139.42,0.00026158,3]
[327727590,1716388246689,-569.7,0.00026158,3]
[327727592,1716388246698,-335.63,0.00026273,2]
[327727594,1716388246707,-156.06,0.00026274,2]
[327727597,1716388246719,-154.94429311,0.00026282,2]
[327727599,1716388246729,-150.0,0.00026342,2]
[327727601,1716388246738,-178.56144211,0.000264,2]
[327727603,1716388246748,-154.94429311,0.00026409,2]
[327727605,1716388246758,-327.60517247,0.00026483,2]
[327727607,1716388246767,-154.94429311,0.00026698,2]
[327727609,1716388246776,-150.0,0.00026754,2]
[327727612,1716388246796,-150.0,0.0002677,2]
[327727615,1716388246813,-152.98488687,0.00026771,2]
[327727618,1716388246832,-155.9957407,0.00026795,2]
[327727621,1716388246852,-567.31,0.000268,2]
[327727624,1716388246873,-4881.0694287,0.00026809,2]
[327727627,1716388246890,-197.87473693,0.00026865,2]
[327727630,1716388246909,-8333.82649122,0.00026865,2]
[327727633,1716388246924,-10542.30980559,0.00026965,2]
[327727636,1716388246941,-2043.5103757,0.00026965,2]
[327727639,1716388246961,-155.0,0.00027,4]
[327727642,1716388246981,-496.0,0.0002702,2]
[327727644,1716388246996,-639.51,0.00027096,2]
[327727647,1716388247012,-612.05,0.000271,2]
[327727650,1716388247028,-216.31651385,0.00027122,2]
[327727653,1716388247045,-159.3699911,0.00027195,2]
[327727655,1716388247059,-154.21988295,0.00027285,2]
[327727658,1716388247076,-152.0063385,0.00027387,2]
[327727661,1716388247091,-194.57,0.00027397,10]
[327727663,1716388247104,-402.59,0.000274,2]
[327727666,1716388247120,-402.59,0.000274,2]
[327727668,1716388247134,-402.59,0.000274,2]
[327727671,1716388247148,-402.59,0.000274,2]
[327727673,1716388247163,-402.59,0.000274,2]
[327727676,1716388247178,-402.59,0.000274,2]
[327727679,1716388247193,-402.59,0.000274,2]
[327727681,1716388247207,-402.59,0.000274,2]
[327727684,1716388247221,-402.59,0.000274,2]
[327727686,1716388247237,-402.59,0.000274,2]
[327727689,1716388247253,-152.98488687,0.00027441,2]
[327727691,1716388247266,-1809.05666336,0.00027475,2]
[327727694,1716388247282,-150.0,0.0002749,2]
[327727696,1716388247296,-154.94429311,0.0002749,2]
[327727699,1716388247311,-150.0,0.00027594,2]
[327727701,1716388247325,-150.0,0.00027614,2]
[327727704,1716388247340,-150.0,0.00027642,2]
[327727707,1716388247355,-150.0,0.00027645,2]
[327727709,1716388247371,-155.86954962,0.00027659,2]
[327727712,1716388247387,-155.86954962,0.00027686,2]
[327727714,1716388247401,-155.86954962,0.00027712,2]
[327727717,1716388247416,-152.0063385,0.00027733,2]
[327727719,1716388247433,-150.0,0.00027734,2]
[327727722,1716388247448,-155.86954962,0.00027742,2]
[327727724,1716388247462,-152.0063385,0.00027758,2]
[327727727,1716388247478,-4881.0694287,0.00027764,2]
[327727729,1716388247494,-178.56144211,0.000279,2]
[327727732,1716388247510,-158.17244213,0.00027914,2]
[327727734,1716388247524,-150.0,0.00027927,2]
[327727737,1716388247539,-7853.61170253,0.00028,2]
[327727740,1716388247555,-2000.0,0.00028,2]
[327727742,1716388247570,-10542.30980559,0.00028098,2]
[327727745,1716388247587,-2043.5103757,0.00028098,2]
[327727748,1716388247603,-150.0,0.00028109,2]
[327727750,1716388247620,-150.0,0.00028135,2]
[327727753,1716388247636,-155.46791382,0.00028136,2]
[327727756,1716388247650,-150.0,0.00028136,2]
[327727758,1716388247666,-150.0,0.00028187,2]
[327727761,1716388247681,-150.0,0.00028207,2]
[327727763,1716388247696,-152.0063385,0.00028239,2]
[327727766,1716388247711,-327.60517247,0.00028267,2]
[327727769,1716388247727,-150.0,0.00028275,2]
[327727772,1716388247743,-150.0,0.00028343,2]
[327727774,1716388247756,-154.49054119,0.00028426,2]
[327727776,1716388247766,-150.0,0.00028437,2]
[327727778,1716388247775,-155.86954962,0.00028447,2]
[327727780,1716388247784,-160.0772059,0.00028451,2]
[327727801,1716388247975,-269.207409,0.00028493,14]
[327727803,1716388247986,-567.31,0.000285,2]
[327727805,1716388247997,-335.63,0.00028537,2]
[327727807,1716388248007,-150.0,0.00028541,2]
[327727809,1716388248017,-300.0,0.00028562,2]
[327727811,1716388248026,-150.0,0.00028564,2]
[327727813,1716388248036,-150.0,0.00028577,2]
[327727815,1716388248045,-150.0,0.00028593,2]
[327727817,1716388248055,-321.42956195,0.00028596,2]
[327727819,1716388248064,-155.68137006,0.00028596,2]
[327727821,1716388248074,-155.96690999,0.00028596,2]
[327727823,1716388248084,-2813.5563,0.00028596,2]
[327727825,1716388248093,-1401.64011116,0.00028596,2]
[327727827,1716388248102,-226.76655076,0.00028596,2]
[327727829,1716388248111,-155.0,0.00028596,2]
[327727831,1716388248122,-274.30344546,0.00028596,2]
[327727833,1716388248131,-155.16618295,0.00028596,2]
[327727835,1716388248141,-174.87662818,0.00028596,2]
[327727837,1716388248150,-155.3047756,0.00028596,2]
[327727839,1716388248159,-615.452466,0.00028596,2]
[327727841,1716388248169,-155.0,0.00028596,2]
[327727843,1716388248179,-155.81256225,0.00028596,2]
[327727845,1716388248188,-156.63582093,0.00028596,2]
[327727847,1716388248197,-360.98885987,0.00028596,10]
[327727849,1716388248207,-155.9133629,0.00028596,2]
[327727851,1716388248217,-2630.99482088,0.00028597,2]
[327727853,1716388248226,-13020.66212432,0.000286,2]
[327727877,1716388248558,-6602.97633342,0.000286,2]
[327727879,1716388248568,-150.0,0.00028623,2]
[327727881,1716388248577,-155.86954962,0.00028657,2]
[327727883,1716388248586,-150.0,0.00028678,2]
[327727885,1716388248596,-4881.0694287,0.00028718,2]
[327727887,1716388248606,-150.0,0.0002872,2]
[327727889,1716388248615,-200.0,0.00028763,15]
[327727891,1716388248625,-612.05,0.000288,2]
[327727893,1716388248634,-1020.78228926,0.00028822,2]
[327727895,1716388248643,-1158.68294414,0.00028822,2]
[327727897,1716388248652,-300.0,0.00028841,2]
[327727899,1716388248662,-1809.05666336,0.00028862,2]
[327727901,1716388248671,-155.9957407,0.00028866,2]
[327727903,1716388248680,-150.0,0.00028921,2]
[327727905,1716388248689,-154.94429311,0.00028947,2]
[327727907,1716388248698,-155.9957407,0.00028995,2]
[327727909,1716388248708,-150.0,0.00029004,2]
[327727911,1716388248717,-152.0063385,0.00029048,2]
[327727913,1716388248727,-1566.03064875,0.00029058,2]
[327727915,1716388248736,-174.08949678,0.00029075,2]
[327727917,1716388248748,-33027.76802467,0.0002912,2]
[327727919,1716388248757,-154.94429311,0.00029147,2]
[327727921,1716388248767,-500.0,0.00029175,2]
[327727924,1716388248777,-2000.0,0.000292,2]
[327727925,1716388248786,-1500.0,0.0002922,2]
[327727927,1716388248795,-10542.30980559,0.00029231,2]
[327727929,1716388248805,-2043.5103757,0.00029231,2]
[327727931,1716388248814,-150.0,0.00029249,2]
[327727933,1716388248823,-152.0063385,0.00029251,2]
[327727935,1716388248832,-269.207409,0.00029315,14]
[327727938,1716388248842,-150.0,0.0002939,2]
[327727940,1716388248853,-178.56144211,0.000294,2]
[327727942,1716388248862,-363.25584455,0.00029408,2]
[327727944,1716388248872,-659.69401485,0.00029408,2]
[327727946,1716388248881,-2014.89061154,0.00029409,2]
[327727948,1716388248890,-252.23961634,0.0002941,2]
[327727950,1716388248900,-500.0,0.0002941,2]
[327727952,1716388248910,-500.0,0.0002941,2]
[327727954,1716388248919,-500.0,0.0002941,2]
[327727956,1716388248928,-500.0,0.0002941,2]
[327727957,1716388248938,-500.0,0.0002941,2]
[327727959,1716388248947,-500.0,0.0002941,2]
[327727961,1716388248956,-500.0,0.0002941,2]
[327727963,1716388248966,-500.0,0.0002941,2]
[327727965,1716388248975,-500.0,0.0002941,2]
[327727967,1716388248984,-500.0,0.0002941,2]
[327727970,1716388248995,-500.0,0.0002941,2]
[327727972,1716388249005,-500.0,0.0002941,2]
[327727973,1716388249015,-500.0,0.0002941,2]
[327727975,1716388249025,-500.0,0.0002941,2]
[327727977,1716388249035,-500.0,0.0002941,2]
[327727979,1716388249044,-500.0,0.0002941,2]
[327727980,1716388249053,-500.0,0.0002941,2]
[327727982,1716388249063,-500.0,0.0002941,2]
[327727984,1716388249072,-500.0,0.0002941,2]
[327727986,1716388249082,-500.0,0.0002941,2]
[327727987,1716388249092,-500.0,0.0002941,2]
[327727988,1716388249102,-500.0,0.0002941,2]
[327727990,1716388249111,-500.0,0.0002941,2]
[327727992,1716388249122,-500.0,0.0002941,2]
[327727994,1716388249131,-500.0,0.0002941,2]
[327727996,1716388249140,-500.0,0.0002941,2]
[327727998,1716388249150,-500.0,0.0002941,2]
[327728000,1716388249159,-500.0,0.0002941,2]
[327728002,1716388249170,-500.0,0.0002941,2]
[327728004,1716388249179,-500.0,0.0002941,2]
[327728006,1716388249189,-500.0,0.0002941,2]
[327728008,1716388249198,-500.0,0.0002941,2]
[327728010,1716388249208,-500.0,0.0002941,2]
[327728012,1716388249218,-500.0,0.0002941,2]
[327728014,1716388249227,-500.0,0.0002941,2]
[327728016,1716388249237,-500.0,0.0002941,2]
[327728018,1716388249247,-500.0,0.0002941,2]